[Event "*** Titled Tuesday Blitz"]
[Site "Chess.com"]
[Date "2019.05.07"]
[Round "3"]
[White "Walter_White_Poland"]
[Black "Keithonsky"]
[Result "0-1"]
[WhiteElo "2290"]
[BlackElo "2375"]
[TimeControl "180+2"]
[EndTime "13:38:32 PDT"]
[Termination "Keithonsky won on time"]

1. e4 {[%clk 0:03:01.9]} 1... c5 {[%clk 0:02:53.1]} 2. Nf3 {[%clk 0:03:02.1]}
2... d6 {[%clk 0:02:32.5]} 3. d4 {[%clk 0:03:02.6]} 3... cxd4 {[%clk 0:02:27.9]}
4. Nxd4 {[%clk 0:03:03.4]} 4... Nf6 {[%clk 0:02:28.7]} 5. Nc3 {[%clk 0:03:04.3]}
5... a6 {[%clk 0:02:26.7]} 6. Bg5 {[%clk 0:03:05.2]} 6... e6 {[%clk 0:02:27.4]}
7. f4 {[%clk 0:03:05.1]} 7... Be7 {[%clk 0:02:28.6]} 8. Qf3 {[%clk 0:03:05.7]}
8... Qc7 {[%clk 0:02:29.3]} 9. O-O-O {[%clk 0:03:05.4]} 9... Nbd7 {[%clk
0:02:30.5]} 10. Bd3 {[%clk 0:03:05.5]} 10... b5 {[%clk 0:02:30.9]} 11. Rhe1
{[%clk 0:03:04.6]} 11... Bb7 {[%clk 0:02:32.4]} 12. Qg3 {[%clk 0:03:05.4]} 12...
O-O-O {[%clk 0:02:20.5]} 13. e5 {[%clk 0:02:51]} 13... dxe5 {[%clk 0:02:12.4]}
14. Ndxb5 {[%clk 0:02:35.3]} 14... axb5 {[%clk 0:02:04.4]} 15. fxe5 {[%clk
0:02:14.9]} 15... Nh5 {[%clk 0:01:57.7]} 16. Qh4 {[%clk 0:02:15.7]} 16... Bxg5+
{[%clk 0:01:56.1]} 17. Qxg5 {[%clk 0:02:16.7]} 17... g6 {[%clk 0:01:57.6]} 18.
Nxb5 {[%clk 0:02:16.3]} 18... Qa5 {[%clk 0:01:51.5]} 19. Nd6+ {[%clk 0:02:05.8]}
19... Kb8 {[%clk 0:01:52.6]} 20. Nxf7 {[%clk 0:01:52.6]} 20... Nc5 {[%clk
0:01:42.1]} 21. Nxh8 {[%clk 0:01:21.9]} 21... Rxh8 {[%clk 0:01:42.3]} 22. Kb1
{[%clk 0:01:08.6]} 22... Na4 {[%clk 0:01:40.3]} 23. Qe7 {[%clk 0:01:01.4]} 23...
Nf4 {[%clk 0:01:26.8]} 24. Be4 {[%clk 0:00:49.8]} 24... Nd5 {[%clk 0:01:24.6]}
25. Qd6+ {[%clk 0:00:29]} 25... Ka8 {[%clk 0:01:25.3]} 26. Bxd5 {[%clk
0:00:09.2]} 26... Bxd5 {[%clk 0:01:24.2]} 27. Rxd5 {[%clk 0:00:10.3]} 27... exd5
{[%clk 0:01:21]} 28. Qc6+ {[%clk 0:00:10.4]} 28... Ka7 {[%clk 0:01:19]} 29. Rf1
{[%clk 0:00:09.9]} 29... Nb6 {[%clk 0:01:11.7]} 30. Rf7+ {[%clk 0:00:10.3]}
30... Ka6 {[%clk 0:01:13.2]} 31. a3 {[%clk 0:00:07.4]} 31... Rb8 {[%clk
0:00:59.8]} 32. e6 {[%clk 0:00:05.3]} 32... Qe1+ {[%clk 0:00:56.7]} 33. Ka2
{[%clk 0:00:06]} 33... Qe5 {[%clk 0:00:56.7]} 0-1

[Event "*** Titled Tuesday Blitz"]
[Site "Chess.com"]
[Date "2019.05.07"]
[Round "3"]
[White "Gubajdullin"]
[Black "Zq1"]
[Result "0-1"]
[WhiteElo "2537"]
[BlackElo "2517"]
[TimeControl "180+2"]
[EndTime "13:38:33 PDT"]
[Termination "Zq1 won by checkmate"]

1. d4 {[%clk 0:03:00.2]} 1... Nf6 {[%clk 0:02:59.8]} 2. Bf4 {[%clk 0:03:00.8]}
2... c5 {[%clk 0:02:58.9]} 3. e3 {[%clk 0:03:01.6]} 3... g6 {[%clk 0:02:57.4]}
4. Nf3 {[%clk 0:02:57.2]} 4... Bg7 {[%clk 0:02:58]} 5. Be2 {[%clk 0:02:58.3]}
5... O-O {[%clk 0:02:58.5]} 6. O-O {[%clk 0:02:59]} 6... cxd4 {[%clk 0:02:57]}
7. exd4 {[%clk 0:02:59.1]} 7... d6 {[%clk 0:02:53.3]} 8. Nbd2 {[%clk 0:02:57.2]}
8... Nc6 {[%clk 0:02:52.9]} 9. Nc4 {[%clk 0:02:57.7]} 9... b5 {[%clk 0:02:52.4]}
10. Ne3 {[%clk 0:02:57.5]} 10... a6 {[%clk 0:02:52.8]} 11. d5 {[%clk 0:02:58]}
11... Na5 {[%clk 0:02:47.1]} 12. Nd4 {[%clk 0:02:52.7]} 12... Qc7 {[%clk
0:02:29.1]} 13. a4 {[%clk 0:02:41.3]} 13... Bb7 {[%clk 0:02:16]} 14. axb5 {[%clk
0:02:39.1]} 14... Nxd5 {[%clk 0:02:13]} 15. Nxd5 {[%clk 0:02:34.8]} 15... Bxd5
{[%clk 0:02:12.8]} 16. bxa6 {[%clk 0:02:24.8]} 16... Bc4 {[%clk 0:01:47.9]} 17.
Nb5 {[%clk 0:01:37]} 17... Qb6 {[%clk 0:01:35.2]} 18. Bxc4 {[%clk 0:01:16.9]}
18... Nxc4 {[%clk 0:01:35]} 19. Qd5 {[%clk 0:01:17.5]} 19... Nxb2 {[%clk
0:01:26.2]} 20. Be3 {[%clk 0:01:17.9]} 20... Qd8 {[%clk 0:01:20.2]} 21. a7
{[%clk 0:01:01.5]} 21... Qc8 {[%clk 0:01:17.2]} 22. Qxa8 {[%clk 0:00:41.2]}
22... Qxa8 {[%clk 0:01:17.3]} 23. Nc7 {[%clk 0:00:42.2]} 23... Qc6 {[%clk
0:00:59.2]} 24. a8=Q {[%clk 0:00:39.8]} 24... Qxc7 {[%clk 0:00:58]} 25. Qd5
{[%clk 0:00:28]} 25... Nc4 {[%clk 0:00:57.3]} 26. Bd4 {[%clk 0:00:24.8]} 26...
e6 {[%clk 0:00:55.8]} 27. Qe4 {[%clk 0:00:25.8]} 27... Nd2 {[%clk 0:00:55.8]}
28. Qd3 {[%clk 0:00:26]} 28... Bxd4 {[%clk 0:00:47.8]} 29. Qxd4 {[%clk
0:00:25.3]} 29... Nxf1 {[%clk 0:00:48.2]} 30. Rxf1 {[%clk 0:00:24.5]} 30... d5
{[%clk 0:00:49.1]} 31. c3 {[%clk 0:00:23.5]} 31... Rc8 {[%clk 0:00:50]} 32. Rc1
{[%clk 0:00:23.4]} 32... Qc4 {[%clk 0:00:50.8]} 33. Qa7 {[%clk 0:00:11.2]} 33...
d4 {[%clk 0:00:50.1]} 34. h4 {[%clk 0:00:08.7]} 34... h5 {[%clk 0:00:50.1]} 35.
Rb1 {[%clk 0:00:05.4]} 35... dxc3 {[%clk 0:00:50.1]} 36. Rb7 {[%clk 0:00:06.3]}
36... c2 {[%clk 0:00:45.9]} 37. Rxf7 {[%clk 0:00:06.9]} 37... c1=Q+ {[%clk
0:00:46.4]} 38. Kh2 {[%clk 0:00:07]} 38... Qxh4# {[%clk 0:00:47.2]} 0-1

[Event "*** Titled Tuesday Blitz"]
[Site "Chess.com"]
[Date "2019.05.07"]
[Round "3"]
[White "gliglu"]
[Black "Naruto-K"]
[Result "1-0"]
[WhiteElo "2721"]
[BlackElo "2534"]
[TimeControl "180+2"]
[EndTime "13:38:37 PDT"]
[Termination "gliglu won by resignation"]

1. d4 {[%clk 0:03:00.6]} 1... Nf6 {[%clk 0:02:59.5]} 2. c4 {[%clk 0:03:00.9]}
2... e6 {[%clk 0:03:00.5]} 3. Nf3 {[%clk 0:03:01.3]} 3... d5 {[%clk 0:02:59]} 4.
Nc3 {[%clk 0:03:00.5]} 4... Bb4 {[%clk 0:03:00.1]} 5. Bf4 {[%clk 0:02:58.6]}
5... dxc4 {[%clk 0:02:42.2]} 6. e3 {[%clk 0:02:53]} 6... b5 {[%clk 0:02:42.6]}
7. Nd2 {[%clk 0:02:45.8]} 7... Bxc3 {[%clk 0:02:23.3]} 8. bxc3 {[%clk
0:02:44.7]} 8... Bb7 {[%clk 0:02:24.7]} 9. Qc2 {[%clk 0:02:40.6]} 9... Nbd7
{[%clk 0:02:18.8]} 10. Be2 {[%clk 0:02:35.6]} 10... Bxg2 {[%clk 0:02:02.2]} 11.
Rg1 {[%clk 0:02:35.6]} 11... Bh3 {[%clk 0:02:03.4]} 12. Rxg7 {[%clk 0:02:34.3]}
12... Bf5 {[%clk 0:02:04.3]} 13. Qb2 {[%clk 0:02:29.5]} 13... Bg6 {[%clk
0:02:05.7]} 14. Qxb5 {[%clk 0:02:25.4]} 14... Nd5 {[%clk 0:01:06.8]} 15. Nxc4
{[%clk 0:01:52.5]} 15... Nxf4 {[%clk 0:00:43.2]} 16. exf4 {[%clk 0:01:52.1]}
16... Kf8 {[%clk 0:00:44.4]} 17. Ne5 {[%clk 0:01:32.2]} 17... Nf6 {[%clk
0:00:16.6]} 18. Rxg6 {[%clk 0:00:41.9]} 18... hxg6 {[%clk 0:00:17.5]} 19. Bf3
{[%clk 0:00:42.8]} 19... Rb8 {[%clk 0:00:15.8]} 20. Qc5+ {[%clk 0:00:42.6]}
20... Qd6 {[%clk 0:00:16.9]} 21. Qxa7 {[%clk 0:00:41.7]} 21... Rb2 {[%clk
0:00:17.9]} 22. Qa8+ {[%clk 0:00:36.9]} 22... Kg7 {[%clk 0:00:17.6]} 23. Qxh8+
{[%clk 0:00:37.3]} 23... Kxh8 {[%clk 0:00:17.7]} 24. Nxf7+ {[%clk 0:00:38.3]}
24... Kg7 {[%clk 0:00:19.1]} 25. Nxd6 {[%clk 0:00:39.3]} 25... cxd6 {[%clk
0:00:21]} 26. a4 {[%clk 0:00:40]} 26... d5 {[%clk 0:00:18.3]} 27. a5 {[%clk
0:00:40.5]} 27... Rb7 {[%clk 0:00:17.8]} 28. a6 {[%clk 0:00:40]} 28... Ra7
{[%clk 0:00:18.5]} 29. Kd2 {[%clk 0:00:40.4]} 29... Nd7 {[%clk 0:00:19.3]} 30.
Be2 {[%clk 0:00:37.2]} 30... Kf6 {[%clk 0:00:19.7]} 31. Rb1 {[%clk 0:00:37.1]}
31... Ra8 {[%clk 0:00:19.2]} 32. Rb7 {[%clk 0:00:36.9]} 32... Nb8 {[%clk
0:00:19.5]} 33. Rb6 {[%clk 0:00:26.5]} 33... Nd7 {[%clk 0:00:20.3]} 34. Rc6
{[%clk 0:00:23.9]} 34... Nb8 {[%clk 0:00:21.3]} 35. Rc8 {[%clk 0:00:23.6]} 1-0

[Event "*** Titled Tuesday Blitz"]
[Site "Chess.com"]
[Date "2019.05.07"]
[Round "3"]
[White "jncool68"]
[Black "MasterKroket"]
[Result "1-0"]
[WhiteElo "2602"]
[BlackElo "2354"]
[TimeControl "180+2"]
[EndTime "13:38:38 PDT"]
[Termination "jncool68 won on time"]

1. e4 {[%clk 0:03:01.9]} 1... c5 {[%clk 0:03:00.2]} 2. Nf3 {[%clk 0:03:02]} 2...
e6 {[%clk 0:03:01.4]} 3. d4 {[%clk 0:03:01.4]} 3... cxd4 {[%clk 0:03:03.3]} 4.
Nxd4 {[%clk 0:03:02.8]} 4... Nc6 {[%clk 0:03:04.8]} 5. Nc3 {[%clk 0:03:04]} 5...
Qc7 {[%clk 0:03:05.3]} 6. Be3 {[%clk 0:03:05.5]} 6... a6 {[%clk 0:03:06.2]} 7.
a3 {[%clk 0:03:06.6]} 7... Nf6 {[%clk 0:03:07]} 8. f4 {[%clk 0:03:06.7]} 8... h5
{[%clk 0:03:00.4]} 9. Qf3 {[%clk 0:03:01.4]} 9... b5 {[%clk 0:02:54.6]} 10.
O-O-O {[%clk 0:02:54.9]} 10... Bb7 {[%clk 0:02:52.2]} 11. h3 {[%clk 0:02:56]}
11... b4 {[%clk 0:02:50.6]} 12. axb4 {[%clk 0:02:56.4]} 12... Bxb4 {[%clk
0:02:51.6]} 13. Bd3 {[%clk 0:02:48.6]} 13... h4 {[%clk 0:02:45.1]} 14. Nb3
{[%clk 0:02:48.1]} 14... Na5 {[%clk 0:02:39.1]} 15. Nxa5 {[%clk 0:02:41]} 15...
Qxa5 {[%clk 0:02:39.6]} 16. Bd4 {[%clk 0:02:42.5]} 16... Rc8 {[%clk 0:02:34.4]}
17. Qe3 {[%clk 0:02:34]} 17... Rh5 {[%clk 0:02:08.2]} 18. Kd2 {[%clk 0:02:31.4]}
18... Qc7 {[%clk 0:01:44.1]} 19. Ra1 {[%clk 0:02:08.1]} 19... Ra5 {[%clk
0:01:41.6]} 20. Rxa5 {[%clk 0:02:08.3]} 20... Qxa5 {[%clk 0:01:42.1]} 21. Ke2
{[%clk 0:02:04.7]} 21... Nh5 {[%clk 0:01:41.5]} 22. Kf2 {[%clk 0:02:03.1]} 22...
Ng3 {[%clk 0:01:42.3]} 23. Re1 {[%clk 0:02:03.9]} 23... Kf8 {[%clk 0:01:24]} 24.
Kg1 {[%clk 0:02:02.9]} 24... Qc7 {[%clk 0:01:04.9]} 25. Rd1 {[%clk 0:01:54.9]}
25... Re8 {[%clk 0:00:47.6]} 26. Ne2 {[%clk 0:01:53.2]} 26... Nxe2+ {[%clk
0:00:43.5]} 27. Bxe2 {[%clk 0:01:54.2]} 27... f5 {[%clk 0:00:33.3]} 28. c3
{[%clk 0:01:50.9]} 28... Bd6 {[%clk 0:00:23.8]} 29. e5 {[%clk 0:01:51.5]} 29...
Be7 {[%clk 0:00:23.3]} 30. Qf2 {[%clk 0:01:51.8]} 30... Ra8 {[%clk 0:00:20.7]}
31. b4 {[%clk 0:01:47.2]} 31... Be4 {[%clk 0:00:20.9]} 32. Ra1 {[%clk
0:01:44.2]} 32... a5 {[%clk 0:00:21.9]} 33. b5 {[%clk 0:01:43.1]} 33... a4
{[%clk 0:00:19]} 34. b6 {[%clk 0:01:44.2]} 34... Qc6 {[%clk 0:00:19.6]} 35. Bf3
{[%clk 0:01:40.3]} 35... a3 {[%clk 0:00:20.3]} 36. Bxe4 {[%clk 0:01:41]} 36...
Qxe4 {[%clk 0:00:20.5]} 37. Bc5 {[%clk 0:01:38.1]} 37... Bxc5 {[%clk 0:00:14.9]}
38. Qxc5+ {[%clk 0:01:38.9]} 38... Kf7 {[%clk 0:00:16.5]} 39. Qc7 {[%clk
0:01:31.7]} 39... Kg6 {[%clk 0:00:07.7]} 40. b7 {[%clk 0:01:31.9]} 40... Qe3+
{[%clk 0:00:06.4]} 41. Kh1 {[%clk 0:01:32.3]} 41... Ra4 {[%clk 0:00:03.7]} 42.
b8=Q {[%clk 0:01:32.6]} 42... Rxf4 {[%clk 0:00:03.2]} 43. Qe8+ {[%clk
0:01:31.8]} 43... Kh6 {[%clk 0:00:04.6]} 44. Qcxd7 {[%clk 0:01:29.6]} 44... Qxc3
{[%clk 0:00:05.6]} 45. Qdxe6+ {[%clk 0:01:29.6]} 1-0

[Event "*** Titled Tuesday Blitz"]
[Site "Chess.com"]
[Date "2019.05.07"]
[Round "3"]
[White "Jenia84"]
[Black "monalize"]
[Result "1/2-1/2"]
[WhiteElo "2244"]
[BlackElo "2333"]
[TimeControl "180+2"]
[EndTime "13:38:43 PDT"]
[Termination "Game drawn by stalemate"]

1. e4 {[%clk 0:02:58.3]} 1... c5 {[%clk 0:02:59.5]} 2. Nf3 {[%clk 0:02:58.2]}
2... d6 {[%clk 0:02:59.3]} 3. d4 {[%clk 0:02:59]} 3... cxd4 {[%clk 0:03:00.2]}
4. Nxd4 {[%clk 0:03:00.5]} 4... Nf6 {[%clk 0:03:01.4]} 5. Nc3 {[%clk 0:03:01.9]}
5... a6 {[%clk 0:03:02.4]} 6. Be2 {[%clk 0:02:59]} 6... e6 {[%clk 0:03:02.5]} 7.
Be3 {[%clk 0:02:53.6]} 7... Qc7 {[%clk 0:03:00.2]} 8. g4 {[%clk 0:02:48.8]} 8...
b5 {[%clk 0:02:59.4]} 9. g5 {[%clk 0:02:49]} 9... Nfd7 {[%clk 0:02:59.5]} 10.
Qd2 {[%clk 0:02:46.5]} 10... Bb7 {[%clk 0:02:58.7]} 11. f3 {[%clk 0:02:40.2]}
11... Ne5 {[%clk 0:02:55]} 12. O-O-O {[%clk 0:02:39.8]} 12... Nbd7 {[%clk
0:02:55.5]} 13. Ndxb5 {[%clk 0:02:33.7]} 13... axb5 {[%clk 0:02:55.4]} 14. Nxb5
{[%clk 0:02:34.5]} 14... Qc6 {[%clk 0:02:47.6]} 15. Nxd6+ {[%clk 0:02:14.7]}
15... Bxd6 {[%clk 0:02:46.6]} 16. Qxd6 {[%clk 0:02:16.3]} 16... Rxa2 {[%clk
0:02:40.2]} 17. Qxc6 {[%clk 0:02:09.3]} 17... Nxc6 {[%clk 0:02:40]} 18. Kb1
{[%clk 0:02:09.1]} 18... Ra5 {[%clk 0:02:38.5]} 19. c3 {[%clk 0:02:06.7]} 19...
Ke7 {[%clk 0:02:35.1]} 20. b4 {[%clk 0:02:07.1]} 20... Ra3 {[%clk 0:02:34.5]}
21. Kb2 {[%clk 0:02:06.3]} 21... Rha8 {[%clk 0:02:33]} 22. Bb5 {[%clk
0:01:47.9]} 22... Ra2+ {[%clk 0:02:31.4]} 23. Kb1 {[%clk 0:01:43.7]} 23... Nde5
{[%clk 0:02:19.3]} 24. f4 {[%clk 0:01:39.6]} 24... Ng4 {[%clk 0:02:16]} 25. Bc5+
{[%clk 0:01:37]} 25... Ke8 {[%clk 0:02:16.8]} 26. h3 {[%clk 0:01:25.8]} 26...
Nf2 {[%clk 0:02:11]} 27. Bxf2 {[%clk 0:01:24.2]} 27... Rxf2 {[%clk 0:02:11.2]}
28. Rd6 {[%clk 0:01:24.7]} 28... Rc8 {[%clk 0:02:11.3]} 29. Rhd1 {[%clk
0:01:19.2]} 29... Rxf4 {[%clk 0:02:09.1]} 30. Rd7 {[%clk 0:01:19.8]} 30... Ba8
{[%clk 0:02:08.8]} 31. Ra7 {[%clk 0:01:20]} 31... Kf8 {[%clk 0:02:05.5]} 32.
Rxa8 {[%clk 0:01:15.7]} 32... Rxa8 {[%clk 0:02:05.8]} 33. Bxc6 {[%clk
0:01:17.1]} 33... Rb8 {[%clk 0:02:05.3]} 34. b5 {[%clk 0:01:17.5]} 34... Rf3
{[%clk 0:02:05.1]} 35. Kc2 {[%clk 0:01:17.1]} 35... Rxh3 {[%clk 0:02:05.3]} 36.
c4 {[%clk 0:01:17.6]} 36... h5 {[%clk 0:02:02.7]} 37. c5 {[%clk 0:01:11.5]}
37... Rg3 {[%clk 0:02:02.2]} 38. Re1 {[%clk 0:00:49.8]} 38... Rxg5 {[%clk
0:02:00.4]} 39. e5 {[%clk 0:00:51.1]} 39... f6 {[%clk 0:02:01.2]} 40. exf6
{[%clk 0:00:49.7]} 40... Rxc5+ {[%clk 0:02:01]} 41. Kd3 {[%clk 0:00:49.6]} 41...
gxf6 {[%clk 0:02:00.9]} 42. Rxe6 {[%clk 0:00:49.9]} 42... Kf7 {[%clk 0:02:01.7]}
43. Rd6 {[%clk 0:00:48.5]} 43... Rbxb5 {[%clk 0:02:01.6]} 44. Bxb5 {[%clk
0:00:48.2]} 44... Rxb5 {[%clk 0:02:02.1]} 45. Ke3 {[%clk 0:00:49.2]} 45... Kg6
{[%clk 0:02:02.8]} 46. Kf4 {[%clk 0:00:49]} 46... Rb4+ {[%clk 0:02:03]} 47. Kg3
{[%clk 0:00:50]} 47... Kg5 {[%clk 0:02:04]} 48. Rd8 {[%clk 0:00:50.6]} 48... h4+
{[%clk 0:02:03.7]} 49. Kg2 {[%clk 0:00:51.2]} 49... Rb3 {[%clk 0:02:04.3]} 50.
Rg8+ {[%clk 0:00:51.3]} 50... Kf4 {[%clk 0:02:04.6]} 51. Rh8 {[%clk 0:00:50.7]}
51... h3+ {[%clk 0:02:04.2]} 52. Kf1 {[%clk 0:00:49.6]} 52... Kg4 {[%clk
0:02:01.3]} 53. Rg8+ {[%clk 0:00:50.2]} 53... Kf3 {[%clk 0:02:01.3]} 54. Kg1
{[%clk 0:00:50.8]} 54... Rb2 {[%clk 0:02:01.7]} 55. Rf8 {[%clk 0:00:50.1]} 55...
Kg3 {[%clk 0:01:56.9]} 56. Rg8+ {[%clk 0:00:48.7]} 56... Kf4 {[%clk 0:01:56.7]}
57. Rh8 {[%clk 0:00:49.5]} 57... h2+ {[%clk 0:01:54.3]} 58. Kh1 {[%clk
0:00:37.6]} 58... f5 {[%clk 0:01:54.1]} 59. Rh3 {[%clk 0:00:38.7]} 59... Kg4
{[%clk 0:01:50.4]} 60. Rg3+ {[%clk 0:00:36.3]} 60... Kxg3 {[%clk 0:01:50.4]}
1/2-1/2

[Event "*** Titled Tuesday Blitz"]
[Site "Chess.com"]
[Date "2019.05.07"]
[Round "3"]
[White "Blitzstream"]
[Black "elefante33"]
[Result "0-1"]
[WhiteElo "2588"]
[BlackElo "2565"]
[TimeControl "180+2"]
[EndTime "13:38:53 PDT"]
[Termination "elefante33 won by resignation"]

1. d4 {[%clk 0:03:01.9]} 1... Nf6 {[%clk 0:02:56.3]} 2. Bg5 {[%clk 0:03:02.7]}
2... Ne4 {[%clk 0:02:53.8]} 3. Bh4 {[%clk 0:03:03.5]} 3... c5 {[%clk 0:02:51]}
4. f3 {[%clk 0:03:04.4]} 4... g5 {[%clk 0:02:51.2]} 5. fxe4 {[%clk 0:03:06.3]}
5... gxh4 {[%clk 0:02:51.5]} 6. e3 {[%clk 0:03:08.2]} 6... Qb6 {[%clk
0:02:52.1]} 7. Nc3 {[%clk 0:03:08.2]} 7... e6 {[%clk 0:02:51.9]} 8. Nf3 {[%clk
0:03:06.8]} 8... Bh6 {[%clk 0:02:52]} 9. Qd3 {[%clk 0:03:01.7]} 9... Nc6 {[%clk
0:02:47.1]} 10. d5 {[%clk 0:02:54.5]} 10... Nb4 {[%clk 0:02:44]} 11. Qd2 {[%clk
0:02:44.1]} 11... Bxe3 {[%clk 0:02:43.3]} 12. Qe2 {[%clk 0:02:39.6]} 12... Bh6
{[%clk 0:02:34.6]} 13. a3 {[%clk 0:02:34.3]} 13... Na6 {[%clk 0:02:34.5]} 14.
Qb5 {[%clk 0:02:31.3]} 14... Qc7 {[%clk 0:02:13.5]} 15. e5 {[%clk 0:02:21.1]}
15... O-O {[%clk 0:02:01.5]} 16. d6 {[%clk 0:02:20.7]} 16... Qc6 {[%clk
0:01:56]} 17. Bd3 {[%clk 0:02:19.9]} 17... Qxb5 {[%clk 0:01:52.3]} 18. Nxb5
{[%clk 0:02:15.8]} 18... Bg7 {[%clk 0:01:43.9]} 19. O-O-O {[%clk 0:02:05.5]}
19... b6 {[%clk 0:01:36.6]} 20. Be4 {[%clk 0:01:37.3]} 20... Rb8 {[%clk
0:01:36.5]} 21. Rhe1 {[%clk 0:01:16.1]} 21... f5 {[%clk 0:01:33.5]} 22. exf6
{[%clk 0:01:13.5]} 22... Bxf6 {[%clk 0:01:33.2]} 23. c4 {[%clk 0:00:51.9]} 23...
Bb7 {[%clk 0:01:32.1]} 24. Bxb7 {[%clk 0:00:46.2]} 24... Rxb7 {[%clk 0:01:32.4]}
25. Re4 {[%clk 0:00:47.3]} 25... Nb8 {[%clk 0:01:30.1]} 26. Nxh4 {[%clk
0:00:47]} 26... Nc6 {[%clk 0:01:27.2]} 27. Nf3 {[%clk 0:00:47]} 27... a6 {[%clk
0:01:26.3]} 28. Nc7 {[%clk 0:00:46.5]} 28... b5 {[%clk 0:01:22.2]} 29. cxb5
{[%clk 0:00:43.7]} 29... axb5 {[%clk 0:01:22.7]} 30. Rg4+ {[%clk 0:00:43.5]}
30... Kh8 {[%clk 0:01:22.8]} 31. Kc2 {[%clk 0:00:34.2]} 31... Bg7 {[%clk
0:01:19.6]} 32. Rg5 {[%clk 0:00:29.7]} 32... Nd4+ {[%clk 0:01:13.6]} 33. Nxd4
{[%clk 0:00:30.1]} 33... Bxd4 {[%clk 0:01:15.5]} 34. Rd2 {[%clk 0:00:19.9]}
34... b4 {[%clk 0:01:16]} 35. axb4 {[%clk 0:00:20.1]} 35... Rxb4 {[%clk
0:01:16.1]} 36. b3 {[%clk 0:00:21.6]} 36... Rb6 {[%clk 0:01:08.6]} 37. Kd3
{[%clk 0:00:07.6]} 37... Rxb3+ {[%clk 0:01:03.4]} 38. Kc4 {[%clk 0:00:06.5]}
38... Rc3+ {[%clk 0:01:01.4]} 39. Kb5 {[%clk 0:00:07.4]} 39... Rb8+ {[%clk
0:01:01.6]} 40. Ka4 {[%clk 0:00:08.5]} 40... Be3 {[%clk 0:00:57.8]} 41. Rxc5
{[%clk 0:00:07.2]} 41... Rxc5 {[%clk 0:00:50.5]} 42. Nxe6 {[%clk 0:00:07]} 0-1

[Event "*** Titled Tuesday Blitz"]
[Site "Chess.com"]
[Date "2019.05.07"]
[Round "3"]
[White "PotapovaM"]
[Black "Cocaino74"]
[Result "1-0"]
[WhiteElo "2455"]
[BlackElo "2273"]
[TimeControl "180+2"]
[EndTime "13:38:56 PDT"]
[Termination "PotapovaM won by resignation"]

1. e4 {[%clk 0:03:01.9]} 1... c5 {[%clk 0:02:59.1]} 2. Nf3 {[%clk 0:03:02.4]}
2... Nc6 {[%clk 0:03:00.5]} 3. Bb5 {[%clk 0:03:00.1]} 3... g6 {[%clk 0:03:01.9]}
4. Bxc6 {[%clk 0:03:00.6]} 4... bxc6 {[%clk 0:03:03.8]} 5. O-O {[%clk
0:02:59.3]} 5... Bg7 {[%clk 0:03:05.3]} 6. Re1 {[%clk 0:02:49.2]} 6... Nh6
{[%clk 0:03:05.9]} 7. c3 {[%clk 0:02:49.5]} 7... O-O {[%clk 0:03:06.1]} 8. d4
{[%clk 0:02:50.5]} 8... cxd4 {[%clk 0:03:08]} 9. cxd4 {[%clk 0:02:51.4]} 9... d5
{[%clk 0:03:09.5]} 10. e5 {[%clk 0:02:50.4]} 10... f6 {[%clk 0:03:11]} 11. e6
{[%clk 0:02:47]} 11... Qd6 {[%clk 0:03:12.4]} 12. Qe2 {[%clk 0:02:39.2]} 12...
f5 {[%clk 0:03:13.5]} 13. b3 {[%clk 0:02:14.4]} 13... Ng4 {[%clk 0:03:14.2]} 14.
Ba3 {[%clk 0:02:09.7]} 14... Qb8 {[%clk 0:03:04.3]} 15. h3 {[%clk 0:01:50.1]}
15... Nf6 {[%clk 0:03:04.8]} 16. Ne5 {[%clk 0:01:25.8]} 16... Qc7 {[%clk
0:02:17.9]} 17. Rc1 {[%clk 0:01:26]} 17... Bb7 {[%clk 0:02:12.7]} 18. Nc3 {[%clk
0:01:24]} 18... Ne4 {[%clk 0:02:09.5]} 19. Nxd5 {[%clk 0:01:22.5]} 19... Bxe5
{[%clk 0:02:00.5]} 20. Nxc7 {[%clk 0:01:14.9]} 20... Bxc7 {[%clk 0:02:02.4]} 21.
d5 {[%clk 0:01:08.2]} 21... Be5 {[%clk 0:01:44.2]} 22. dxc6 {[%clk 0:01:06.8]}
22... Bxc6 {[%clk 0:01:44.6]} 23. Bb2 {[%clk 0:01:05.6]} 23... Bxb2 {[%clk
0:01:43.5]} 24. Qxb2 {[%clk 0:01:07.5]} 24... Rac8 {[%clk 0:01:28.2]} 25. f3
{[%clk 0:01:08.9]} 25... Ng3 {[%clk 0:01:23.1]} 26. Kh2 {[%clk 0:01:06.5]} 26...
f4 {[%clk 0:01:22.7]} 27. Rc4 {[%clk 0:01:02.2]} 27... Bd5 {[%clk 0:01:14]} 28.
Rxc8 {[%clk 0:01:02.9]} 28... Rxc8 {[%clk 0:01:15.9]} 29. Rc1 {[%clk 0:01:04.5]}
29... Rf8 {[%clk 0:00:46]} 30. Qe5 {[%clk 0:01:03.5]} 30... Ba8 {[%clk
0:00:38.4]} 31. Rc7 {[%clk 0:00:57]} 31... Nf5 {[%clk 0:00:16.6]} 32. Rxa7
{[%clk 0:00:51.2]} 32... Bc6 {[%clk 0:00:15.8]} 33. Rc7 {[%clk 0:00:49.3]} 33...
Ba8 {[%clk 0:00:10.3]} 34. b4 {[%clk 0:00:48.9]} 34... Rd8 {[%clk 0:00:10.7]}
35. Qxf4 {[%clk 0:00:47.2]} 35... h6 {[%clk 0:00:07.1]} 36. b5 {[%clk
0:00:47.8]} 36... Bd5 {[%clk 0:00:04.9]} 37. Qe5 {[%clk 0:00:46.1]} 37... Bxa2
{[%clk 0:00:04.9]} 38. b6 {[%clk 0:00:44.1]} 38... Nd6 {[%clk 0:00:05.2]} 39.
Rxe7 {[%clk 0:00:43.7]} 1-0